{"text_format":"2","workbook":"xlsx","n_sheets":12,"sheets":["Főösszesítő","Munkanem összesítő","2.Bontás, építőanyagok újraha","19.Költségtérítések","21.Irtás, föld- és sziklamunka","33. Kőműves munkák","36.Vakolás és rabicolás","39. Szárazépítés","42.Hideg- és melegburkolatok k","44. Fa szerkezetek elhelyezése","47.Felületképzés","71.Elektromos energiaellátás,"],"not_rendered":{"charts":0,"images":0,"macros":0,"external_links":0,"defined_names":0,"comments":0,"pivot_tables":0},"unopened":[],"bounds":{"document_bytes":16777216,"sheet_cells":100000,"run_cost":"one","rows_first":2000,"rows_last":500,"rows_between":2000,"halvings":0,"cell_chars":16384,"cell_head_chars":4096},"cells_cut":0,"cells_raw":0,"read":"whole","date_system":"1900"}

{"sheet":"Főösszesítő","index":0,"n_rows":12,"n_cols":4,"rows_kept":12,"cut":false,"hidden":false,"merged":[[8,2,8,3],[9,2,9,3],[10,2,10,3],[11,2,11,3],[0,0,0,3],[2,0,2,3],[5,2,5,3],[6,2,6,3],[7,2,7,3]]}
[]
[]
["Költségvetés főösszesítő"]
["Megnevezés",null,"Anyagköltség","Díjköltség"]
["1 Építmény közvetlen költségei",null,{"$f":"'Munkanem összesítő'!C12","v":0},{"$f":"'Munkanem összesítő'!D12","v":0}]
["Nettó ajánlati ár: A+D",null,{"$f":"C5+D5","v":0}]
["Áfa összege (27%):",0.27,{"$f":"C6*0.27","v":0}]
["Bruttó ajánlati ár:",null,{"$f":"C6+C7","v":0}]
["Nettó tartalékkeret (5 %):",0.05,{"$f":"C6*0.05","v":0}]
["Áfa összege (27%):",0.27,{"$f":"C9*0.27","v":0}]
["Bruttó tartalékkeret:",null,{"$f":"C10+C9","v":0}]
["Tartalékkerettel növelt bruttó ajánlati ár:",null,{"$f":"C8+C11","v":0}]

{"sheet":"Munkanem összesítő","index":1,"n_rows":12,"n_cols":4,"rows_kept":12,"cut":false,"hidden":false,"merged":[]}
["Ssz.","Megnevezés","Anyagköltség","Díjköltség"]
["2","Bontás, építőanyagok újrahasznosítása",{"$f":"'2.Bontás, építőanyagok újraha'!H4","v":0},{"$f":"'2.Bontás, építőanyagok újraha'!I4","v":0}]
["19","Költségtérítések",{"$f":"'19.Költségtérítések'!H4","v":0},{"$f":"'19.Költségtérítések'!I4","v":0}]
["21","Irtás, föld- és sziklamunka",{"$f":"'21.Irtás, föld- és sziklamunka'!H5","v":0},{"$f":"'21.Irtás, föld- és sziklamunka'!I5","v":0}]
[33,"Kőműves munkák",{"$f":"'33. Kőműves munkák'!H3","v":0},{"$f":"'33. Kőműves munkák'!I3","v":0}]
[36,"Vakolás és rabicolás",{"$f":"'36.Vakolás és rabicolás'!H4","v":0},{"$f":"'36.Vakolás és rabicolás'!I4","v":0}]
["39","Szárazépítés",{"$f":"'39. Szárazépítés'!H3","v":0},{"$f":"'39. Szárazépítés'!I3","v":0}]
["42","Hideg- és melegburkolatok készítése, aljzat előkészítés",{"$f":"'42.Hideg- és melegburkolatok k'!H9","v":0},{"$f":"'42.Hideg- és melegburkolatok k'!I9","v":0}]
[44,"Nyílászárárók",{"$f":"'44. Fa szerkezetek elhelyezése'!H5","v":0},{"$f":"'44. Fa szerkezetek elhelyezése'!I5","v":0}]
["47","Felületképzés",{"$f":"'47.Felületképzés'!H9","v":0},{"$f":"'47.Felületképzés'!I9","v":0}]
["71","Elektromos energiaellátás, villanyszerelés",{"$f":"'71.Elektromos energiaellátás,'!H25","v":0},{"$f":"'71.Elektromos energiaellátás,'!I25","v":0}]
[null,"Összesen (HUF)",{"$f":"ROUND(SUM(C2:C11),0)","v":0},{"$f":"ROUND(SUM(D2:D11),0)","v":0}]

{"sheet":"2.Bontás, építőanyagok újraha","index":2,"n_rows":4,"n_cols":9,"rows_kept":4,"cut":false,"hidden":false,"merged":[]}
["Ssz.","Tételszám","Tétel szövege","Menny.","Egység","Anyag egységár","Díj egységre","Anyag összesen","Díj összesen"]
[1,"02-030-7.1","Vegyes építési- bontási törmelék felrakása szállítóeszközre gépi erővel, kiegészítő kézi munkával",15,"m3",null,null,{"$f":"ROUND(F2*D2,0)","v":0},{"$f":"ROUND(G2*D2,0)","v":0}]
[2,"02-030-7.2","Kibontott ajtók lehordása pincébe",3,"db",null,null,{"$f":"ROUND(F3*D3,0)","v":0},{"$f":"ROUND(G3*D3,0)","v":0}]
[null,null,"Munkanem összesen (HUF)",{"$nulls":4},{"$f":"ROUND(SUM(H2:H3),0)","v":0},{"$f":"ROUND(SUM(I2:I3),0)","v":0}]

{"sheet":"19.Költségtérítések","index":3,"n_rows":4,"n_cols":9,"rows_kept":4,"cut":false,"hidden":false,"merged":[]}
["Ssz.","Tételszám","Tétel szövege","Menny.","Egység","Anyag egységár","Díj egységre","Anyag összesen","Díj összesen"]
[1,"19-090-1","Építmények átadás előtti utolsó takarítása (pipere)",1,"db",null,null,{"$f":"ROUND(F2*D2,0)","v":0},{"$f":"ROUND(G2*D2,0)","v":0}]
[2,"19-090-2","Fóliatakarások készítése",50,"m2",null,null,{"$f":"ROUND(F3*D3,0)","v":0},{"$f":"ROUND(G3*D3,0)","v":0}]
[null,null,"Munkanem összesen (HUF)",{"$nulls":4},{"$f":"ROUND(SUM(H2:H3),0)","v":0},{"$f":"ROUND(SUM(I2:I3),0)","v":0}]

{"sheet":"21.Irtás, föld- és sziklamunka","index":4,"n_rows":5,"n_cols":9,"rows_kept":5,"cut":false,"hidden":false,"merged":[]}
["Ssz.","Tételszám","Tétel szövege","Menny.","Egység","Anyag egységár","Díj egységre","Anyag összesen","Díj összesen"]
[1,"21-011-11.4","Építési törmelék konténeres elszállítása, lerakása, lerakóhelyi díjjal, 6,0 m³-es konténerbe",3,"db",null,null,{"$f":"ROUND(F2*D2,0)","v":0},{"$f":"ROUND(G2*D2,0)","v":0}]
[2,"21-011-12","Munkahelyi depóniából építési törmelék konténerbe rakása,  kézi erővel, önálló munka esetén elszámolva, konténer szállítás nélkül",15,"m3",null,null,{"$f":"ROUND(F3*D3,0)","v":0},{"$f":"ROUND(G3*D3,0)","v":0}]
[3,"12-006-11.1","Védőburolat fóliával, takaró papírral leragasztva.",60,"m2",null,null,{"$f":"ROUND(F4*D4,0)","v":0},{"$f":"ROUND(G4*D4,0)","v":0}]
[null,null,"Munkanem összesen (HUF)",{"$nulls":4},{"$f":"ROUND(SUM(H2:H4),0)","v":0},{"$f":"ROUND(SUM(I2:I4),0)","v":0}]

{"sheet":"33. Kőműves munkák","index":5,"n_rows":3,"n_cols":9,"rows_kept":3,"cut":false,"hidden":false,"merged":[]}
["Ssz.","Tételszám","Tétel szövege","Menny.","Egység","Anyag egységár","Díj egységre","Anyag összesen","Díj összesen"]
[1,"33-000-21.1.2.2","Válaszfal bontása, égetett agyag-kerámia termékből, 10 cm vastagségig, falazó, cementes mészhabarcsból falazva",36,"m2",null,null,{"$f":"ROUND(F2*D2,0)","v":0},{"$f":"ROUND(G2*D2,0)","v":0}]
[null,null,"Munkanem összesen (HUF)",{"$nulls":4},{"$f":"ROUND(SUM(H2:H2),0)","v":0},{"$f":"ROUND(SUM(I2:I2),0)","v":0}]

{"sheet":"36.Vakolás és rabicolás","index":6,"n_rows":4,"n_cols":9,"rows_kept":4,"cut":false,"hidden":false,"merged":[]}
["Ssz.","Tételszám","Tétel szövege","Menny.","Egység","Anyag egységár","Díj egységre","Anyag összesen","Díj összesen"]
[1,"36-090-2.2.1","Vésés téglafalban ésVakolatok pótlása, keskenyvakolatok pótlása mennyezeten, 10 cm szélességig",50,"m",null,null,{"$f":"ROUND(F2*D2,0)","v":0},{"$f":"ROUND(G2*D2,0)","v":0}]
[2,"36-001-1.3.2-0640040","Sima oldalfalvakolat készítése kézi felhordással, gipszes habarccsal, téglafelületen, két rétegben simítva, 1 cm vastagságban, Gipszes mészhabarcs aljzat készítéséhez és Hs10-mg, gipszes mészhabarcs simításhoz",15,"m2",null,null,{"$f":"ROUND(F3*D3,0)","v":0},{"$f":"ROUND(G3*D3,0)","v":0}]
[null,null,"Munkanem összesen (HUF)",{"$nulls":4},{"$f":"SUM(H2:H3)","v":0},{"$f":"SUM(I2:I3)","v":0}]

{"sheet":"39. Szárazépítés","index":7,"n_rows":3,"n_cols":9,"rows_kept":3,"cut":false,"hidden":false,"merged":[]}
["Ssz.","Tételszám","Tétel szövege","Menny.","Egység","Anyag egységár","Díj egységre","Anyag összesen","Díj összesen"]
[1,"39-000-2","Álmennyezet bontása",7,"m2",null,null,{"$f":"ROUND(F2*D2,0)","v":0},{"$f":"ROUND(G2*D2,0)","v":0}]
[null,null,"Munkanem összesen (HUF)",{"$nulls":4},{"$f":"ROUND(SUM(H2:H2),0)","v":0},{"$f":"ROUND(SUM(I2:I2),0)","v":0}]

{"sheet":"42.Hideg- és melegburkolatok k","index":8,"n_rows":9,"n_cols":9,"rows_kept":9,"cut":false,"hidden":false,"merged":[]}
["Ssz.","Tételszám","Tétel szövege","Menny.","Egység","Anyag egységár","Díj egységre","Anyag összesen","Díj összesen"]
[1,"42-000-2.1","Lapburkolatok bontása, padlóburkolat lapból",6.3,"m2",null,null,{"$f":"ROUND(F2*D2,0)","v":0},{"$f":"ROUND(G2*D2,0)","v":0}]
[2,"42-000-3.4","PVC burkolat bontása, falszegéllyel együtt",32,"m2",null,null,{"$f":"ROUND(F3*D3,0)","v":0},0]
[3,"42-000-2.2","Lapburkolatok bontása, fal-, pillér- és oszlopburkolat, bármely méretű mozaik, kőagyag és csempe",4,"m2",null,null,{"$f":"ROUND(F4*D4,0)","v":0},{"$f":"ROUND(G4*D4,0)","v":0}]
[4,"42-011-2.1.1","Padlóburkolat hordozószerkezetének fellületelőkészítése beltérben, beton alapfelületen, tapadóhíd",38,"m2",null,null,{"$f":"ROUND(F5*D5,0)","v":0},{"$f":"ROUND(G5*D5,0)","v":0}]
[5,"42-041-2.1.1","Aljzatkiegyenlítés 3mm vastagságban",38,"m2",null,null,{"$f":"ROUND(F6*D6,0)","v":0},{"$f":"ROUND(G6*D6,0)","v":0}]
[6,null,"Linóleum burkolat fektetése szabványos, kiegyenlített aljzatra, lemezből ",38,"m2",null,null,{"$f":"ROUND(F7*D7,0)","v":0},{"$f":"ROUND(G7*D7,0)","v":0}]
[7,"42-090-6.7.3","Szegélyléc felszerelése burkolat köré",27,"fm",null,null,{"$f":"ROUND(F8*D8,0)","v":0},{"$f":"ROUND(G8*D8,0)","v":0}]
[null,null,"Munkanem összesen (HUF)",{"$nulls":4},{"$f":"SUM(H2:H8)","v":0},{"$f":"SUM(I2:I8)","v":0}]

{"sheet":"44. Fa szerkezetek elhelyezése","index":9,"n_rows":5,"n_cols":9,"rows_kept":5,"cut":false,"hidden":false,"merged":[]}
["Ssz.","Tételszám","Tétel szövege","Menny.","Egység","Anyag egységár","Díj egységre","Anyag összesen","Díj összesen"]
[1,"44-000-1.2","Fa nyílászáró szerkezetek bontása",3,"db",null,null,{"$f":"ROUND(F2*D2,0)","v":0},{"$f":"ROUND(G2*D2,0)","v":0}]
[2,"44-000-029","Konyhabútor bontása",15,"lm3",null,null,0,0]
[3,"K","Mosogatópult bontása mosogató tálcával, víz- és szennyvíz csatlakozó vezetékek ledugozásával",{"$f":"2.5*0.6","v":1.5},"m2",null,null,0,0]
[null,null,"Munkanem összesen (HUF)",{"$nulls":4},{"$f":"SUM(H2:H2)","v":0},{"$f":"SUM(I2:I2)","v":0}]

{"sheet":"47.Felületképzés","index":10,"n_rows":9,"n_cols":9,"rows_kept":9,"cut":false,"hidden":false,"merged":[]}
["Ssz.","Tételszám","Tétel szövege","Menny.","Egység","Anyag egységár","Díj egységre","Anyag összesen","Díj összesen"]
[1,"47-000-1.3.1.1","Belső festéseknél felület előkészítése, részmunkák; vizes diszperziós falfesték lekaparása, bármilyen padozatú helységben, tagolatlan felületen",123,"m2",null,null,{"$f":"ROUND(F2*D2,0)","v":0},{"$f":"ROUND(G2*D2,0)","v":0}]
[2,"47-000-1.21.2.1.1.1","Belső festéseknél felület előkészítése, részmunkák; glettelés, műanyag kötőanyagú glettel (simítótapasszal), vakolt felületen, bármilyen padozatú helyiségben, tagolatlan felületen",123,"m2",null,null,0,0]
[3,"47-011-15.1.1.1","Diszperziós festés (két rétegben) műanyag bázisú vizes-diszperziós  fehér vagy gyárilag színezett festékkel, új vagy régi lekapart, előkészített alapfelületen, vakolaton, két rétegben, tagolatlan sima felületen",123,"m2",null,null,0,0]
[4,"47-000-4.1.5","Acélfelületek mázolásának előkészítő és részmunkái; régi olajfesték eltávolítása kaparással (raskettázás), cső és regisztercső felületről (80 NÁ-ig), függesztő és tartóvasakról, ",30,"m ",null,null,0,0]
[5,"47-000-4.1.6","Acélfelületek mázolásának előkészítő és részmunkái; régi olajfesték eltávolítása kaparással (raskettázás), fűtőtestről",4,"m2",null,null,0,0]
[7,"47-021-21.5.1","Acélfelületek festése, , zománc lakkozása fűtőtesten",4,"m2",null,null,0,0]
[8,"47-021-31.","Acélfelületek közbenső festése, zománc lakkozása cső felületen",{"$f":"1.3+2.6+3.5+0.8+0.5+2*4.6+4.8+6+1.3","v":30},"m",null,null,0,0]
[null,null,"Munkanem összesen (HUF)",{"$nulls":4},{"$f":"SUM(H2:H8)","v":0},{"$f":"SUM(I2:I8)","v":0}]

{"sheet":"71.Elektromos energiaellátás,","index":11,"n_rows":25,"n_cols":9,"rows_kept":25,"cut":false,"hidden":false,"merged":[]}
["Ssz.","Tételszám","Tétel szövege","Menny.","Egység","Anyag egységár","Díj egységre","Anyag összesen","Díj összesen"]
[1,"71-000-1.1.1","Vezetékek, kábelek és szerelvények bontása; védőcső leszerelése műanyag csőből, falhoronyból",50,"m",null,null,{"$f":"ROUND(F2*D2,0)","v":0},{"$f":"ROUND(G2*D2,0)","v":0}]
[2,"71-000-1.11","Vezetékek, kábelek és szerelvények bontása; kapcsolók, csatlakozó aljzatok, falifoglalatok, csengők, reduktorok, erős- vagy gyengeáramú nyomók, termosztátok, lépcsőházi automaták, jelzők leszerelése",28,"db",null,null,0,0]
[3,"71-000-1.13","Vezetékek, kábelek és szerelvények bontása; mindennemű fényforrás és lámpatest leszerelése",7,"db",null,null,0,0]
[4,"71-000-1.15","Tűzjelző bontása és visszaszerelése",3,"db",null,null,0,0]
[5,"71-001-11.1.1-0661635","Elágazó doboz illetve szerelvénydoboz elhelyezése, süllyesztve, fészekvésés nélkül, 30-60 mm mélységig, kör vagy négyszög alakú, max. négyes sorolásig, szerelvénydoboz téglába sorolható, süllyesztett ",20,"db",null,null,0,0]
[6,"71-001-1.1.1.2.1","Merev simafalú vagy gégecső, műanyag védőcső elhelyezése, elágazó dobozokkal, előre elkészített falhoronyba, vékony vagy vékonyított falú kivitelben, gyenge mechanikai igénybevételre, Névleges méret: 11-16 mm",60,"m",null,null,0,0]
[7,"71-001-11.1.1-0661588","Elágazó doboz illetve szerelvénydoboz elhelyezése, süllyesztve, fészekvésés nélkül, 30-60 mm mélységig, kör vagy négyszög alakú, max. négyes sorolásig, kötődoboz téglafalba  süllyesztett, ",5,"db",null,null,0,0]
[8,"71-005-1.1.1.4-0570121","Komplett világítási  és telekommunikációs szerelvények, Fali kapcsolók elhelyezése, süllyesztve, 6-16A kétáramkörös (csillár) kapcsolók, Schneider Electric ASFORA Csillárkapcsoló, rugós bekötés, fehér (105), 10A, 250 V~, kompletten, kerettel, Csz.: EPH0300121",1,"db",null,null,0,0]
[9,"71-005-1.1.1.1-0570001","Komplett világítási  és telekommunikációs szerelvények, Fali kapcsolók elhelyezése, süllyesztve, 6-16A egypólusú kapcsolók, Schneider Electric ASFORA Egypólusú kapcsoló, rugós bekötés, fehér (101), 10A, 250 V~, kompletten, kerettel, Csz.: EPH0100121",1,"db",null,null,0,0]
[10,"71-005-1.11.1.1.1-0570201","Komplett világítási  és telekommunikációs szerelvények, Csatlakozóaljzat elhelyezése, süllyesztve, 16A, földelt, egyes csatlakozóaljzat (2P+F), Schneider Electric ASFORA 2P+F aljzat, csavaros bekötés, fehér, 16A, 250 V~, kompletten, kerettel, Csz.: EPH2900121",15,"db",null,null,0,0]
[11,"71-005-1.31.2-0570351","Komplett világítási  és telekommunikációs szerelvények, Telefon és PC csatlakozóaljzat, USB töltő aljzat, hangszóró-csatlakozó elhelyezése (egyes/kettős), PC, USB, hangszóró, Schneider Electric ASFORA 1xRJ45 Cat6 UTP aljzat, fehér, kompletten, kerettel, Csz.: EPH4700121",4,"db",null,null,0,0]
[12,"71-008-11.1.1.2-0122537","Áram-védőkapcsolók elhelyezése, váltakozó- és pulzáló egyenáramú kioldásra, gyorskioldással (6...40 ms), 6 kA zárlati szilárdsággal, 4 pólusú, Schneider Electric Acti9 iID 4P 40A 30mA A-típus áramvédő, R: A9Z21440",1,"db",null,null,0,0]
[13,"71-008-9.3.1-0623115","Kismegszakítók és kiegészítők elhelyezése kalapsínes szerelőlapra,\"B\", \"C\" és \"D\" jelleggörbével, 6 kA zárlati szilárdsággal, 1 pólusú, Schneider Electric Acti9 iC60N 1P 6A B kismegszakító, R: A9F03106",3,"db",null,null,0,0]
[14,"71-008-9.3.1-0623237","Kismegszakítók és kiegészítők elhelyezése kalapsínes szerelőlapra,\"B\", \"C\" és \"D\" jelleggörbével, 6 kA zárlati szilárdsággal, 1 pólusú, Schneider Electric Acti9 iC60N 1P 16A C kismegszakító, R: A9F04116",12,"db",null,null,0,0]
[15,"71-009-1.2.3-0122617","Áramköri kiselosztók falba süllyesztett kivitelben, kalapsínes szerelőlappal, N- és PE sínnel/sín nélkül, max. 63A-ig, IP 30, IP 40 védettséggel (kismegszakítók, védőkapcsolók, távkapcsolók stb. számára), üresen, kiselosztók 36-42 egység között, Schneider Electric RESI9 MP Kiselosztó, tejüveg hatású átlátszó ajtó, süllyesztett, 3x12 modul, PEN sín, komplett, fehér, R: MIP22312T",1,"db",null,null,0,0]
[16,"71-010-2.7-0628737","Meglévő felületre szerelt lámpatest átalakítása LED csővel",6,"db",null,null,0,0]
[17,"71-010-15.15-0628627","Függeszthető lámpatestek táblavilágító",1,"db",null,null,0,0]
[18,"71-010-12.11.2.2.6-0630417","(Akkumulátoros vészvilágítás)  Tartalék világítási lámpatestek elhelyezése, saját akkumulátoros, állandó üzemű, süllyesztett kivitelben, LED-es kivitelben, LED 1 órás inverterrel/akkuval,",1,"db",null,null,0,0]
[19,"71-013-9","Érintésvédelmi mérés és jegyzőkönyv készítése valamint átadási dokumentáció elkészítése (fénymérési jegyzőkönyv,nyilatkozatok…stb)",42,"db",null,null,0,0]
[20,"71-002-1.1-0210002","Szigetelt vezeték elhelyezése védőcsőbe húzva vagy vezetékcsatornába fektetve, rézvezetővel, leágazó kötésekkel, szigetelés ellenállás méréssel, a szerelvényekhez csatlakozó vezetékvégek bekötése nélkül, keresztmetszet: 0,5-2,5 mm², H07V-U 450/750V 1x1,5 mm², tömör rézvezetővel (MCu)",150,"m",null,null,0,0]
[21,"71-002-1.1-0210003","Szigetelt vezeték elhelyezése védőcsőbe húzva vagy vezetékcsatornába fektetve, rézvezetővel, leágazó kötésekkel, szigetelés ellenállás méréssel, a szerelvényekhez csatlakozó vezetékvégek bekötése nélkül, keresztmetszet: 0,5-2,5 mm², H07V-U 450/750V 1x2,5 mm², tömör rézvezetővel (MCu)",300,"m",null,null,0,0]
[22,"71-002-1.2-0213006","Szigetelt vezeték elhelyezése védőcsőbe húzva vagy vezetékcsatornába fektetve, rézvezetővel, leágazó kötésekkel, szigetelés ellenállás méréssel, a szerelvényekhez csatlakozó vezetékvégek bekötése nélkül, keresztmetszet: 4-6 mm², H07V-K 450/750V 1x6 mm², hajlékony rézvezetővel (Mkh)",80,"m",null,null,0,0]
[23,"71-002-42.1.1","Adatátviteli kábel elhelyezése védőcsőbe húzva vagy vezetékcsatornába fektetve, strukturált adatátviteli kábel strukturált számítógépes adatátviteli hálózatokhoz, 100 Mbit/s átviteli sebesség (CAT 6 kategória)",120,"m",null,null,0,0]
[null,null,"Munkanem összesen (HUF)",{"$nulls":4},{"$f":"ROUND(SUM(H2:H24),0)","v":0},{"$f":"ROUND(SUM(I2:I24),0)","v":0}]